bitfinex/quotes_ETHUSD_20250324
["timestamp","ask_amount","ask_price","bid_price","bid_amount"]
[1742797881099,2.75789862,2071.4,2070.8,4.82896]
[1742797882002,1.94964272,2071.4,2070.8,4.82896]
[1742797882305,0.0682,2071.3,2070.8,4.82896]
[1742797882600,0.0682,2071.3,2070.9,4.82879]
[1742797883890,0.0682,2071.3,2070.8,4.82892]
[1742797884203,0.0682,2071.2,2070.6,4.82938]
[1742797884380,3.0,2071.0,2070.6,9.65877]
[1742797884585,3.0,2071.0,2070.7,4.82927]
[1742797884782,3.0,2071.0,2070.7,4.82908]
[1742797884984,3.0,2071.0,2070.9,4.82881]
[1742797885190,3.0,2071.0,2070.8,4.82889]
[1742797887778,0.0682,2071.2,2071.1,4.82835]
[1742797887977,3.0,2071.4,2070.9,1.5311]
[1742797888188,0.0682,2071.7,2071.4,4.82746]
[1742797888396,5.204,2071.8,2071.6,4.82718]
[1742797888589,8.204,2071.8,2071.6,4.82718]
[1742797888788,8.204,2071.8,2071.6,4.82701]
[1742797889085,8.204,2071.8,2071.6,4.82716]
[1742797889481,8.204,2071.8,2071.5,9.6547]
[1742797889706,0.0682,2072.5,2071.7,0.55]
[1742797889912,5.204,2072.4,2072.1,9.65182]
[1742797890093,5.204,2072.4,2072.1,9.65183]
[1742797890411,0.0682,2072.5,2072.4,4.82532]
[1742797890579,5.203,2072.6,2072.4,4.82532]
[1742797890785,5.203,2072.6,2072.4,4.82522]
[1742797891104,0.0682,2072.4,2072.2,4.82563]
[1742797891415,0.0682,2072.4,2072.3,4.82555]
[1742797891616,0.0682,2072.7,2072.4,4.82519]
[1742797891816,0.0682,2072.7,2072.3,4.82554]
[1742797892112,0.11657298,2072.7,2072.1,4.8258]
[1742797892336,3.11657298,2072.7,2072.0,4.82607]
[1742797892616,0.0682,2072.6,2072.0,4.82607]
[1742797892812,0.11657298,2072.6,2072.0,4.82607]
[1742797893109,0.0682,2072.6,2071.9,4.82642]
[1742797893892,0.0682,2072.6,2072.0,4.82623]
[1742797896027,0.0682,2072.6,2071.9,4.82648]
[1742797896511,0.0682,2072.6,2072.0,4.82623]
[1742797896812,0.0682,2072.6,2071.8,4.82672]
[1742797897008,0.0682,2072.6,2072.5,4.82509]
[1742797897311,3.0,2072.7,2072.3,4.82553]
[1742797897484,0.11657298,2072.6,2071.8,4.82652]
[1742797897686,0.0682,2072.6,2071.9,4.82637]
[1742797898200,0.0682,2072.6,2071.7,6.39667]
[1742797898404,3.0,2072.4,2072.1,4.82597]
[1742797898610,5.199,2072.3,2072.1,9.6519]
[1742797898798,0.0682,2072.6,2072.1,5.79112]
[1742797898990,3.0,2072.3,2072.2,4.82577]
[1742797899190,5.199,2072.4,2072.2,4.82559]
[1742797899407,3.0,2072.4,2072.2,4.82559]
[1742797899810,5.2672,2072.6,2072.3,4.82545]
[1742797900014,5.2672,2072.6,2072.3,6.044063]
[1742797900215,3.0,2072.5,2072.3,6.044063]
[1742797901920,3.0,2072.5,2072.4,4.82532]
[1742797902121,0.0682,2073.0,2072.3,1.218613]
[1742797902419,0.0682,2073.0,2072.7,4.8246]
[1742797902829,0.0682,2073.6,2072.9,4.82408]
[1742797902995,0.0682,2073.6,2073.3,4.823]
[1742797903320,0.0682,2073.6,2073.0,4.82388]
[1742797903507,0.0682,2073.6,2072.9,4.82398]
[1742797903993,0.0682,2073.4,2072.5,4.82498]
[1742797904189,3.0,2073.2,2072.3,4.82535]
[1742797904421,0.0682,2073.1,2072.3,9.6508]
[1742797904623,0.0682,2073.1,2072.3,4.82535]
[1742797905029,0.04837298,2073.0,2072.2,4.82576]
[1742797905332,3.0682,2072.8,2072.3,4.82555]
[1742797905631,3.0,2072.6,2072.3,4.82555]
[1742797907204,3.0,2072.6,2072.2,4.82576]
[1742797907536,3.0,2072.6,2072.2,9.65143]
[1742797907723,3.0,2072.6,2072.3,4.82555]
[1742797908734,5.197,2072.7,2072.4,4.82513]
[1742797908939,5.197,2072.7,2072.3,2.535022]
[1742797909104,5.197,2072.7,2072.4,4.82528]
[1742797911340,3.0,2072.6,2072.3,9.65097]
[1742797911539,3.0,2072.6,2072.4,4.82528]
[1742797913411,3.0,2072.6,2072.3,4.82552]
[1742797914941,3.0,2072.6,2072.2,4.82578]
[1742797915260,0.0682,2072.5,2072.0,4.82622]
[1742797916150,0.0682,2072.5,2072.0,4.82607]
[1742797916766,0.0682,2072.5,2072.2,4.82563]
[1742797916911,3.0,2072.6,2072.5,4.82495]
[1742797917111,3.0,2072.6,2072.4,4.82517]
[1742797917317,3.0,2072.6,2072.4,5.790242]
[1742797917551,3.0,2072.6,2072.4,4.82517]
[1742797919146,3.0,2072.6,2072.2,4.82578]
[1742797919320,3.0,2072.6,2072.2,9.65145]
[1742797920143,0.0682,2072.5,2072.2,4.82567]
[1742797920348,0.0682,2072.5,2072.2,4.82578]
[1742797920762,0.0682,2072.5,2072.2,4.82561]
[1742797920970,3.0,2072.6,2072.3,4.82546]
[1742797921848,3.0,2072.6,2072.4,4.82525]
[1742797923026,3.0,2072.6,2072.2,4.82578]
[1742797923222,3.0,2072.6,2072.1,4.82589]
[1742797923462,3.0,2072.6,2072.3,4.82535]
[1742797923761,3.0,2072.6,2072.4,4.82522]
[1742797924163,3.0,2072.6,2072.3,4.82545]
[1742797924734,3.0,2072.6,2072.2,4.82568]
[1742797924938,3.0,2072.6,2072.2,5.471348]
[1742797925232,3.0,2072.6,2072.2,4.82565]
[1742797925756,3.0,2072.6,2072.1,6.45717]
[1742797926252,0.0682,2072.5,2071.7,1.6312]
[1742797926451,0.0682,2072.5,2071.8,4.8266]
[1742797927926,0.43248145,2072.5,2071.8,4.8266]
[1742797928128,0.43248145,2072.5,2071.8,5.955059]
[1742797930240,0.0682,2072.4,2071.8,5.955059]
[1742797930557,3.0,2072.2,2071.8,5.955059]
[1742797932041,0.0682,2072.1,2071.5,7.91037]
[1742797932240,0.0682,2072.1,2071.6,4.82709]
[1742797932756,0.0682,2072.1,2071.6,9.6541]
[1742797932956,0.0682,2072.1,2071.7,4.82692]
[1742797933166,3.0,2072.2,2071.8,4.82657]
[1742797933372,3.0,2072.2,2071.9,4.82627]
[1742797934171,3.0,2072.2,2071.8,6.39435]
[1742797934479,3.0,2072.2,2071.9,4.82647]
[1742797934843,3.0,2072.2,2072.0,4.8262]
[1742797935047,3.0,2072.2,2072.0,5.948237]
[1742797935278,3.0,2072.2,2072.0,1.122037]
[1742797935672,3.0,2072.2,2072.0,5.948257]
[1742797935873,3.0,2072.2,2072.0,10.774397]
[1742797936086,3.0,2072.2,2072.0,5.948177]
[1742797936282,3.0,2072.2,2072.1,0.5948177]
[1742797936455,0.0682,2072.4,2072.1,0.5948177]
[1742797936775,3.0,2072.3,2072.1,0.5948177]
[1742797937364,0.0682,2072.4,2072.1,0.5948177]
[1742797937682,3.0,2072.4,2072.2,4.82556]
[1742797937890,3.0,2072.4,2072.2,5.36759777]
[1742797939059,3.0,2072.4,2072.2,0.54203777]
[1742797939255,3.0,2072.4,2072.1,5.4208277]
[1742797939477,3.0,2072.4,2072.2,4.82574]
[1742797939683,3.0,2072.4,2072.3,4.82555]
[1742797939887,0.0682,2072.6,2072.3,4.82555]
[1742797940094,0.0682,2072.6,2072.2,4.82577]
[1742797940260,3.0682,2072.6,2072.2,5.52459877]
[1742797940460,3.0682,2072.6,2072.2,0.69882877]
[1742797940784,3.0682,2072.6,2072.0,4.82624]
[1742797940986,3.0682,2072.6,2072.0,4.82614]
[1742797941196,0.0682,2072.5,2072.0,4.82614]
[1742797941356,0.0682,2072.5,2072.0,9.65224]
[1742797941556,0.0682,2072.5,2072.0,4.8261]
[1742797942089,3.0,2072.6,2072.2,4.82559]
[1742797943383,0.0682,2072.8,2072.1,1.6207]
[1742797943656,3.0,2072.7,2072.3,9.65079]
[1742797943861,3.0,2072.7,2072.3,4.82539]
[1742797944091,3.0,2072.7,2072.3,5.952576]
[1742797944392,3.0,2072.7,2072.3,5.952636]
[1742797944571,3.0,2072.7,2072.4,4.82532]
[1742797945896,3.0,2072.7,2072.4,4.82515]
[1742797946094,26.682,2073.3,2072.4,4.82532]
[1742797946398,5.2532,2073.2,2072.5,5.4203206]
[1742797946589,5.2532,2073.2,2072.8,4.82428]
[1742797946791,5.2532,2073.2,2072.6,9.64946]
[1742797946991,5.2532,2073.2,2072.7,4.8246]
[1742797947291,8.2522,2073.2,2072.7,4.8246]
[1742797950780,8.2522,2073.2,2072.8,4.82433]
[1742797954084,8.2522,2073.2,2072.5,0.5952506]
[1742797954085,0.0682,2073.1,2072.6,4.8247]
[1742797954282,0.0682,2073.1,2072.5,5.4202906]
[1742797955011,0.0682,2073.1,2072.5,4.82497]
[1742797955377,0.0682,2073.1,2071.9,4.82627]
[1742797955577,1.67247298,2073.0,2071.9,4.82647]
[1742797955780,1.67247298,2073.0,2071.8,4.82665]
[1742797956111,1.6241,2072.8,2071.7,4.82694]
[1742797956412,1.6241,2072.5,2071.7,4.82694]
[1742797956614,3.0,2072.6,2071.2,32.22153885]
[1742797956615,1.6298,2072.3,2071.6,4.82715]
[1742797956784,1.6298,2072.0,2070.7,4.82928]
[1742797956986,1.6298,2072.0,2071.3,4.82787]
[1742797957297,0.04837298,2071.9,2071.2,9.65586]
[1742797957491,1.6298,2071.6,2071.2,0.965586]
[1742797957799,1.6298,2071.6,2071.0,4.82841]
[1742797958184,1.6298,2071.6,2071.1,0.04827753]
[1742797958481,1.6298,2071.6,2071.2,4.82809]
[1742797958706,1.6298,2071.6,2071.1,9.65642]
[1742797958898,1.6298,2071.6,2071.1,10.62688975]
[1742797959186,1.6298,2071.6,2071.1,5.79866975]
[1742797959413,1.6298,2071.6,2071.0,4.82848]
[1742797960090,1.6298,2071.6,2071.1,4.82825]
[1742797960283,1.6298,2071.6,2070.9,0.55]
[1742797960483,3.0,2071.5,2071.3,4.82766]
[1742797960711,3.0,2071.5,2071.1,4.82812]
[1742797961012,3.0,2071.5,2071.0,0.690998]
[1742797961182,1.6298,2071.4,2070.7,4.82928]
[1742797961386,1.6298,2071.4,2070.8,4.82887]
[1742797961596,1.6298,2071.4,2070.7,9.65844]
[1742797961800,1.6298,2071.4,2070.7,10.87568604]
[1742797962005,1.6298,2071.4,2070.7,6.04640604]
[1742797962203,1.6298,2071.4,2070.6,4.82947]
[1742797962391,1.6298,2071.4,2070.5,9.65916]
[1742797962999,1.6298,2071.4,2070.5,4.82952]
[1742797963399,1.6298,2071.4,2070.5,9.65917]
[1742797963798,1.6298,2071.4,2070.6,4.8295]
[1742797963994,1.6298,2071.2,2070.6,4.8295]
[1742797964216,3.0,2071.0,2070.6,4.8295]
[1742797964908,3.0,2071.0,2070.7,4.82926]
[1742797965103,3.0,2071.0,2070.8,4.82902]
[1742797965313,1.6298,2071.2,2070.8,4.82902]
[1742797965513,3.0,2071.0,2070.8,4.82902]
[1742797966220,3.0,2071.0,2070.7,0.04828779]
[1742797966518,1.6298,2071.2,2070.7,5.36531057]
[1742797966823,3.0,2071.0,2070.6,4.82934]
[1742797968093,3.0,2071.0,2070.4,5.78032112]
[1742797968295,1.6298,2070.9,2070.5,4.82961]
[1742797968792,1.6298,2070.9,2070.6,4.82949]
[1742797970228,1.6298,2070.9,2070.5,4.82961]
[1742797970523,1.6298,2070.9,2070.3,9.66015]
[1742797970719,1.6298,2070.9,2070.4,4.82997]
[1742797972619,1.6298,2070.9,2070.5,4.82974]
[1742797972825,1.6298,2070.9,2070.6,4.82931]
[1742797973823,4.6298,2070.9,2070.7,4.82912]
[1742797974207,1.6298,2070.9,2070.7,4.82912]
[1742797974404,4.6298,2070.9,2070.7,4.82912]
[1742797974739,4.6298,2070.9,2070.6,4.82946]
[1742797975902,4.6298,2070.9,2070.5,5.467755]
[1742797976101,4.6298,2070.9,2070.5,10.297415]
[1742797976309,4.6298,2070.9,2070.6,6.0143515]
[1742797976730,4.6298,2070.9,2070.6,6.0142315]
[1742797977635,4.6298,2070.9,2070.4,4.82979]
[1742797977828,4.6298,2070.9,2070.2,6.38171]
[1742797978135,4.6298,2070.9,2070.3,4.83019]
[1742797978318,4.6298,2070.9,2070.3,9.6602]
[1742797978524,4.6298,2070.9,2070.4,4.82997]
[1742797978835,1.6079,2070.8,2070.3,9.66012]
[1742797980535,1.6079,2070.8,2070.4,4.82997]
[1742797980830,1.6079,2070.8,2070.3,9.66012]
[1742797981034,1.6079,2070.8,2070.3,4.83001]
[1742797981234,1.6079,2070.8,2070.1,5.38048]
[1742797981437,1.6079,2070.8,2070.3,4.83021]
[1742797982933,1.6079,2070.8,2070.2,10.681949]
[1742797983131,1.6079,2070.8,2070.3,4.83012]
[1742797983637,2.55994458,2070.8,2070.3,4.83012]
[1742797984308,1.6079,2070.6,2069.8,4.83127]
[1742797984516,1.6079,2070.3,2069.7,4.83157]
[1742797984722,1.6079,2070.3,2069.6,9.66348]
[1742797984915,1.6079,2070.3,2069.5,4.83208]
[1742797985115,1.6079,2070.3,2069.3,1.634]
[1742797985116,1.6079,2070.1,2069.4,4.83231]
[1742797985424,1.6079,2069.8,2069.3,4.83251]
[1742797985621,1.6079,2069.8,2069.3,4.83241]
[1742797985943,1.6079,2069.8,2069.3,4.83232]
[1742797986113,1.6079,2069.8,2069.3,4.8324]
[1742797986606,1.6079,2069.8,2069.1,1.634]
[1742797986817,4.6079,2069.8,2069.6,9.66357]
[1742797987039,4.6079,2069.8,2069.6,4.83174]
[1742797987431,4.6079,2069.8,2069.5,4.83207]
[1742797988115,4.6079,2069.8,2069.6,4.83181]
[1742797988515,4.6079,2069.8,2069.4,4.83231]
[1742797988516,5.58649,2069.8,2069.4,4.83231]
[1742797988842,5.58649,2069.8,2069.5,4.83206]
[1742797989135,4.6079,2069.8,2069.5,4.83206]
[1742797989324,4.6079,2069.8,2069.4,4.8322]
[1742797990142,4.6079,2069.8,2069.4,9.66437]
[1742797990335,1.6079,2069.8,2069.3,0.55]
[1742797990656,3.0,2070.0,2069.7,4.83152]
[1742797991027,3.0,2070.0,2069.6,4.83184]
[1742797991337,1.5261,2069.9,2069.5,4.83203]
[1742797992438,1.5261,2069.9,2069.5,4.83195]
[1742797993655,1.5261,2069.9,2069.6,4.83172]
[1742797993960,1.5261,2069.9,2069.6,4.68192]
[1742797994941,1.5261,2069.9,2069.5,4.83201]
[1742797995147,1.5261,2069.9,2069.4,4.8321]
[1742797995648,1.5261,2069.9,2069.4,9.6643]
[1742797995953,2.49641,2069.9,2069.3,9.66491]
[1742797996349,1.5261,2069.8,2069.2,4.83278]
[1742797996543,3.0,2069.7,2069.2,4.8326]
[1742797996748,1.5261,2069.6,2069.2,4.8326]
[1742797997917,1.5261,2069.6,2069.0,4.83305]
[1742797998121,1.6077,2069.4,2069.0,4.83305]
[1742797998350,1.6077,2069.4,2068.9,4.83343]
[1742797998541,6.7827,2069.4,2068.9,4.83343]
[1742797998847,3.67827,2069.3,2068.9,4.83343]
[1742797999225,3.0,2069.3,2069.0,4.8332]
[1742797999424,3.0,2069.3,2069.0,4.83323]
[1742797999822,3.0,2069.3,2068.9,9.66676]
[1742798000022,3.0,2069.3,2068.9,9.66672]
[1742798000233,3.0,2069.3,2068.9,9.66667]
[1742798000432,3.0,2069.3,2068.9,4.83333]
[1742798000634,3.0,2069.3,2069.0,4.83323]
[1742798001244,0.35471083,2069.9,2069.0,0.966656]
[1742798001425,8.175,2069.7,2069.1,1.6639]
[1742798001619,8.175,2069.7,2069.4,4.83219]
[1742798001823,8.175,2069.7,2069.2,4.83278]
[1742798001824,8.175,2069.7,2069.3,4.83249]
[1742798002551,8.175,2069.7,2069.3,9.66493]
[1742798002757,1.5703,2069.8,2069.5,4.83185]
[1742798002957,1.5703,2069.8,2069.6,4.83171]
[1742798003950,1.5703,2070.3,2069.6,9.66347]
[1742798004152,5.175,2070.1,2069.6,4.83171]
[1742798004325,5.175,2070.1,2069.6,9.66339]
[1742798004727,1.5703,2070.0,2069.6,4.83168]
[1742798005131,1.5703,2070.0,2069.5,4.83201]
[1742798005538,1.5703,2070.0,2069.4,4.83226]
[1742798005539,4.5703,2070.0,2069.4,4.83226]
[1742798005762,1.5703,2069.8,2069.4,4.83226]
[1742798006336,1.5703,2069.8,2069.4,4.83214]
[1742798006535,1.5703,2069.8,2069.5,4.83206]
[1742798006736,1.5703,2069.8,2069.4,4.83214]
[1742798007141,1.5703,2069.8,2069.5,4.83204]
[1742798007944,1.5703,2070.0,2069.4,0.55]
[1742798008146,1.5703,2070.0,2069.8,4.83129]
[1742798008346,5.174,2070.2,2070.1,4.83068]
[1742798008347,1.5703,2070.2,2070.1,4.83068]
[1742798008546,28.2733,2070.5,2070.1,4.83068]
[1742798008771,4.5703,2070.5,2070.0,4.83091]
[1742798009068,5.54463,2070.5,2069.9,4.83108]
[1742798009265,5.54463,2070.5,2069.9,9.66204]
[1742798009436,5.54463,2070.5,2069.8,0.55]
[1742798009641,4.5703,2070.5,2070.1,4.8305]
[1742798010170,1.5703,2070.5,2070.1,4.8305]
[1742798010468,1.5703,2070.5,2070.2,4.83024]
[1742798010671,1.5703,2070.5,2070.1,4.83068]
[1742798010841,4.5703,2070.5,2070.2,4.878689]
[1742798011178,1.5703,2070.5,2070.2,4.83039]
[1742798011543,4.5703,2070.5,2070.2,4.83039]
[1742798011736,4.5703,2070.5,2070.1,4.83068]
[1742798011944,4.5703,2070.5,2070.0,4.83089]
[1742798012371,1.5703,2070.4,2070.0,9.66169]
[1742798012563,1.5703,2070.4,2070.1,4.83059]
[1742798013068,1.5703,2070.4,2070.1,4.8305]
[1742798013280,1.5703,2070.4,2070.2,4.83044]
[1742798013494,3.0,2070.5,2070.4,4.82983]
[1742798013671,3.0,2070.5,2070.3,4.83016]
[1742798014370,3.0,2070.7,2070.5,4.82975]
[1742798015185,3.0,2070.7,2070.4,4.82994]
[1742798015748,6.7413,2071.0,2070.7,4.82917]
[1742798016046,6.7413,2071.0,2070.6,4.82951]
[1742798016240,1.5703,2070.8,2070.2,11.32453]
[1742798016560,1.5703,2070.8,2070.3,4.8302]
[1742798017447,1.5703,2070.8,2070.2,4.83041]
[1742798017653,1.6128,2070.7,2070.2,4.83041]
[1742798017959,1.6128,2070.4,2069.9,9.66205]
[1742798018162,1.6128,2070.4,2069.9,9.66199]
[1742798018579,1.6128,2070.4,2070.2,4.8304]
[1742798018947,1.6128,2070.4,2070.2,9.6608]
[1742798019149,1.6128,2070.4,2070.2,4.8304]
[1742798023158,1.6128,2070.4,2070.1,4.83067]
[1742798023359,2.29098,2070.4,2070.1,4.83067]
[1742798023588,5.29098,2070.4,2070.1,4.83067]
[1742798024668,5.29098,2070.4,2070.0,4.83082]
[1742798024870,5.29098,2070.4,2070.0,4.8308]
[1742798025071,5.29098,2070.4,2070.0,9.66158]
[1742798025380,5.29098,2070.4,2069.9,4.83114]
[1742798025581,5.29098,2070.4,2070.0,4.8307]
[1742798025982,5.29098,2070.4,2070.1,4.83066]
[1742798027485,5.29098,2070.4,2070.0,4.83086]
[1742798028182,3.5894033,2070.3,2069.9,4.83115]
[1742798028774,0.5894033,2070.3,2069.9,4.83115]
[1742798028974,4.6128,2070.4,2070.0,4.83089]
[1742798030263,4.6128,2070.4,2069.9,4.8311]
[1742798031170,3.0,2070.4,2069.8,4.83137]
[1742798031379,1.6128,2070.3,2069.8,4.83137]
[1742798031567,1.6128,2070.3,2069.9,4.83114]
[1742798031762,1.6128,2070.3,2070.0,4.8309]
[1742798031963,1.6128,2070.3,2069.9,4.83114]
[1742798033392,1.6128,2070.3,2070.0,4.8309]
[1742798035498,1.6128,2070.3,2069.9,9.66218]
[1742798035701,3.0,2070.4,2070.1,4.83051]
[1742798035907,3.0,2070.4,2070.1,9.66109]
[1742798036113,3.0,2070.4,2070.1,4.83051]
[1742798039587,3.0,2070.4,2070.2,4.8304]
[1742798039780,3.0,2070.4,2070.2,9.66069]
[1742798040109,3.0,2070.4,2070.2,4.83029]
[1742798040608,3.0,2070.4,2070.1,4.83056]
[1742798041111,3.0,2070.4,2070.1,9.66106]
[1742798042005,3.0,2070.4,2070.1,4.8305]
[1742798042391,3.98128,2070.4,2070.0,4.83091]
[1742798044501,3.98128,2070.4,2070.0,4.83075]
[1742798046209,3.98128,2070.4,2069.9,4.83113]
[1742798046404,3.98128,2070.4,2070.0,4.83087]
[1742798046996,4.5202,2070.3,2069.9,4.83113]
[1742798047214,2.1113406,2070.3,2069.9,4.83113]
[1742798049613,2.1113406,2070.3,2069.9,4.83102]
[1742798049813,1.5202,2070.3,2069.9,4.83102]
[1742798051513,1.5202,2070.3,2069.8,4.83127]
[1742798052109,1.5202,2070.1,2069.4,4.83223]
[1742798052310,3.0,2069.9,2069.5,9.66394]
[1742798052714,3.0,2069.9,2069.5,4.83196]
[1742798052906,1.5202,2069.8,2069.4,4.83216]
[1742798053784,1.5202,2069.8,2069.5,4.83198]
[1742798053987,1.5202,2069.8,2069.3,0.55]
[1742798054216,3.0,2069.9,2069.6,4.83171]
[1742798055716,6.6802,2070.0,2069.8,4.83138]
[1742798055717,1.5202,2070.0,2069.8,4.83138]
[1742798056020,4.5202,2070.0,2069.8,4.83138]
[1742798056188,4.5202,2070.0,2069.7,4.83155]
[1742798056387,4.5202,2070.0,2069.6,7.340207]
[1742798056715,4.5202,2070.0,2069.4,6.3741]
[1742798057017,1.5202,2069.8,2069.4,4.8321]
[1742798057412,1.5202,2069.8,2069.4,9.66425]
[1742798058307,1.5202,2069.8,2069.4,4.8321]
[1742798058509,1.5202,2069.8,2069.4,9.66432]
[1742798059014,1.5202,2069.8,2069.4,4.8321]
[1742798059223,0.548812,2069.7,2069.3,4.83253]
[1742798059383,0.04837298,2069.7,2069.2,4.83266]
[1742798059590,1.5202,2069.8,2069.2,4.83266]
[1742798059918,1.5202,2069.8,2069.3,4.83254]
[1742798060214,5.158,2069.7,2069.3,4.83254]
[1742798060415,1.5202,2069.5,2069.2,4.83266]
[1742798060915,1.5202,2069.5,2069.1,4.833]
[1742798061426,1.5202,2069.5,2068.9,4.83338]
[1742798062018,1.5202,2069.5,2069.3,1.0]
[1742798062223,2.049802,2069.4,2069.3,1.0]
[1742798064906,10.206802,2069.4,2069.3,1.0]
[1742798065116,4.531,2069.4,2069.3,1.0]
[1742798065319,9.688,2069.4,2069.3,1.0]
[1742798068601,9.73637298,2069.4,2069.3,1.0]
[1742798069127,9.688,2069.4,2069.3,1.0]
[1742798069321,9.73637298,2069.4,2069.3,1.0]
[1742798069519,10.71001028,2069.4,2069.3,1.0]
[1742798069839,10.6616373,2069.4,2069.3,1.0]
[1742798071516,5.5046373,2069.4,2069.3,1.0]
[1742798071711,9.687,2069.4,2069.3,1.0]
[1742798073541,4.531,2069.4,2069.3,1.0]
[1742798073840,9.687,2069.4,2069.3,1.0]
[1742798074605,4.531,2069.4,2069.3,1.0]
[1742798074811,3.0,2069.4,2069.3,1.0]
[1742798077227,4.02181028,2069.4,2069.3,1.0]
[1742798077427,3.9734373,2069.4,2069.3,1.0]
[1742798079829,5.5783373,2069.4,2069.3,1.0]
[1742798086234,5.62671028,2069.4,2069.3,1.0]
[1742798086546,5.5783373,2069.4,2069.3,1.0]
[1742798087642,4.6049,2069.4,2069.3,1.0]
[1742798087848,3.0,2069.4,2069.3,1.0]
[1742798089124,4.6049,2069.4,2069.3,1.0]
[1742798089925,3.0,2069.4,2069.3,1.0]
[1742798090143,2.96205451,2070.0,2069.3,7.35795]
[1742798090350,8.11305451,2070.0,2069.4,5.568055]
[1742798090532,3.0,2069.9,2069.4,0.735795]
[1742798090855,8.11305451,2070.0,2069.3,2.5254]
[1742798091044,3.0,2069.9,2069.3,2.5254]
[1742798091623,3.0,2069.9,2069.4,4.83213]
[1742798091824,6.7559,2070.0,2069.5,1.6292]
[1742798092036,7.43149,2070.0,2069.5,1.6292]
[1742798092257,3.0,2069.9,2069.5,1.6292]
[1742798092845,3.0,2069.9,2069.3,1.0]
[1742798093165,3.0,2069.9,2069.3,2.6292]
[1742798094559,3.04837298,2069.9,2069.3,2.6292]
[1742798094764,4.6306,2069.7,2069.3,1.0]
[1742798094927,3.0,2069.5,2069.3,1.0]
[1742798103070,4.6076,2069.9,2069.4,6.44811]
[1742798103264,5.147,2069.8,2069.5,4.832]
[1742798103451,3.0,2069.7,2069.5,4.832]
[1742798103973,3.0,2069.9,2069.5,4.832]
[1742798104192,1.6076,2070.3,2069.8,1.6159]
[1742798104482,5.146,2070.0,2069.8,6.4472]
[1742798104773,5.146,2070.0,2069.9,4.83115]
[1742798104948,1.6076,2070.5,2069.9,1.127835]
[1742798105148,5.146,2070.4,2070.1,4.83059]
[1742798105343,5.146,2070.4,2070.1,9.66109]
[1742798105551,5.146,2070.4,2070.2,4.83044]
[1742798106091,5.146,2070.4,2070.1,4.83062]
[1742798106378,3.0,2070.3,2070.1,4.83062]
[1742798106871,3.0,2070.3,2070.1,4.83067]
[1742798107247,3.0,2070.3,2070.0,6.4468]
[1742798107442,26.723,2070.6,2070.0,2.22574576]
[1742798107678,5.145,2070.8,2070.3,6.36995]
[1742798107861,3.0,2070.7,2070.4,4.82984]
[1742798108195,3.0,2070.7,2070.3,6.36996]
[1742798108551,3.0,2070.7,2070.4,4.82994]
[1742798109749,5.143,2070.9,2070.7,4.82907]
[1742798109949,5.143,2070.9,2070.7,6.36887]
[1742798110163,3.0,2070.8,2070.7,1.5398]
[1742798110378,28.314,2071.3,2070.7,1.5398]
[1742798110580,5.143,2071.1,2070.7,6.36893]
[1742798110755,3.0,2071.0,2070.8,4.82902]
[1742798111151,3.0,2071.2,2070.9,4.82881]
[1742798111351,8.143,2071.2,2071.0,1.5398]
[1742798111859,3.0,2071.2,2071.0,1.5398]
[1742798120414,3.0,2071.2,2070.8,1.5398]
[1742798120589,0.04837298,2071.1,2070.8,1.5398]
[1742798120990,3.0,2071.2,2070.8,1.5398]
[1742798122809,5.00736119,2071.5,2070.8,6.36875]
[1742798123010,3.0,2071.3,2070.9,5.465485]
[1742798123986,3.0,2071.3,2070.9,10.294145]
[1742798124184,3.0,2071.3,2070.9,5.465485]
[1742798125103,3.0,2071.3,2070.9,10.294125]
[1742798125305,3.0,2071.5,2071.1,1.6208]
[1742798125506,8.136,2071.5,2071.1,1.6208]
[1742798125722,8.136,2071.5,2071.0,1.6208]
[1742798126084,3.0,2071.5,2071.0,1.6208]
[1742798126289,3.0,2071.6,2071.0,1.6208]
[1742798126494,0.01866737,2072.1,2071.1,5.37835]
[1742798126807,0.01866737,2072.1,2071.6,1.6208]
[1742798129587,0.01866737,2072.1,2071.6,11.27488]
[1742798129816,0.01866737,2072.1,2071.7,4.82685]
[1742798130025,0.01866737,2072.1,2071.6,6.44782]
[1742798130515,0.01866737,2072.1,2071.7,4.82692]
[1742798130717,3.01866737,2072.1,2071.7,4.82692]
[1742798131392,3.01866737,2072.1,2071.8,0.2673826]
[1742798131605,3.01866737,2072.1,2071.7,4.82692]
[1742798131903,3.01866737,2072.1,2071.8,4.82669]
[1742798132235,3.01866737,2072.1,2071.8,0.27691848]
[1742798133107,3.01866737,2072.1,2071.6,11.27486]
[1742798133426,3.01866737,2072.1,2071.6,12.402346]
[1742798133629,3.01866737,2072.1,2071.7,0.27691848]
[1742798134407,3.01866737,2072.1,2071.7,5.10383848]
[1742798135824,3.01866737,2072.1,2071.7,0.27691848]
[1742798136353,3.01866737,2072.1,2071.7,5.10385848]
[1742798137223,3.01866737,2072.1,2071.7,6.37177393]
[1742798137430,0.01866737,2072.1,2071.8,4.82665]
[1742798137628,0.01866737,2072.1,2072.0,4.82625]
[1742798138132,0.01866737,2072.1,2072.0,5.10079465]